bitfinex/quotes_SOLUSD_20241107
["timestamp","ask_amount","ask_price","bid_price","bid_amount"]
[1730987466265,12.51200059,186.48,186.42,12.51200059]
[1730987466460,23.776884,186.47,186.43,12.51200059]
[1730987466768,36.28888459,186.46,186.4,12.51200059]
[1730987466963,0.12549,186.43,186.38,12.51200059]
[1730987467273,0.12549,186.41,186.37,12.51200059]
[1730987467447,0.12549,186.41,186.36,12.51200059]
[1730987467852,0.12549,186.41,186.37,12.51200059]
[1730987468377,0.12549,186.41,186.36,12.51200059]
[1730987469270,0.12549,186.41,186.37,12.51200059]
[1730987469470,0.12549,186.41,186.39,12.51200059]
[1730987471173,0.12549,186.41,186.4,12.51200059]
[1730987471564,23.776884,186.42,186.4,12.51200059]
[1730987471763,0.1,186.46,186.41,12.51200059]
[1730987471969,23.876884,186.46,186.41,12.51200059]
[1730987472293,0.12549,186.45,186.41,12.51200059]
[1730987472572,0.12549,186.45,186.4,12.51200059]
[1730987472885,12.63749059,186.45,186.39,12.51200059]
[1730987473072,23.902374,186.43,186.38,12.51200059]
[1730987473369,36.41437459,186.43,186.37,12.51200059]
[1730987473572,36.51437459,186.43,186.37,12.51200059]
[1730987474298,36.51437459,186.43,186.35,15.6345]
[1730987474299,0.12549,186.39,186.35,15.6345]
[1730987474485,0.12549,186.39,186.31,6.151]
[1730987474486,36.28888459,186.38,186.32,12.51200059]
[1730987474976,12.63749059,186.37,186.31,12.51200059]
[1730987475149,0.12549,186.35,186.33,0.4461274]
[1730987477179,0.12549,186.35,186.33,12.95812799]
[1730987477961,0.12549,186.35,186.34,12.51200059]
[1730987479092,17.97550059,186.45,186.34,12.51200059]
[1730987479267,12.51200059,186.44,186.38,12.51200059]
[1730987479466,0.12549,186.43,186.38,12.51200059]
[1730987479676,0.12549,186.4,186.35,12.51200059]
[1730987479991,12.51200059,186.42,186.36,12.51200059]
[1730987480364,23.902374,186.41,186.36,12.51200059]
[1730987481967,23.902374,186.41,186.35,12.51200059]
[1730987482190,23.902374,186.39,186.34,12.51200059]
[1730987482489,23.902374,186.39,186.35,12.51200059]
[1730987482689,23.902374,186.39,186.34,12.51200059]
[1730987485091,23.902374,186.39,186.33,0.4461274]
[1730987485092,23.902374,186.39,186.35,12.51200059]
[1730987485386,23.902374,186.39,186.37,12.51200059]
[1730987485890,23.902374,186.39,186.36,12.51200059]
[1730987486263,23.902374,186.39,186.35,12.51200059]
[1730987486465,23.902374,186.39,186.36,12.51200059]
[1730987486769,23.902374,186.39,186.33,0.4461274]
[1730987486770,23.902374,186.39,186.35,12.51200059]
[1730987487172,23.902374,186.4,186.35,12.51200059]
[1730987487689,36.41437459,186.4,186.34,12.51200059]
[1730987487902,23.902374,186.38,186.33,0.4461274]
[1730987488190,23.902374,186.36,186.33,0.4461274]
[1730987491873,36.41437459,186.36,186.33,0.4461274]
[1730987492280,23.902374,186.34,186.33,0.4461274]
[1730987492794,23.902374,186.34,186.33,0.3207274]
[1730987492973,56.41437459,186.34,186.33,0.3207274]
[1730987493173,56.51437459,186.34,186.33,0.3207274]
[1730987493489,23.776884,186.3,186.25,15.592]
[1730987493688,0.12549,186.29,186.25,15.592]
[1730987494195,0.12549,186.29,186.26,12.51200059]
[1730987494591,0.12549,186.29,186.27,12.51200059]
[1730987494787,5.4668,186.33,186.26,12.51200059]
[1730987494979,12.63749059,186.32,186.26,12.51200059]
[1730987495186,0.12549,186.3,186.25,28.10400059]
[1730987495384,0.12549,186.3,186.27,12.51200059]
[1730987495696,0.12549,186.3,186.26,12.51200059]
[1730987496884,0.12549,186.3,186.27,12.51200059]
[1730987497180,0.12549,186.3,186.28,12.51200059]
[1730987497377,12.51200059,186.37,186.29,12.51200059]
[1730987497576,12.61200059,186.38,186.31,12.51200059]
[1730987497781,12.51200059,186.39,186.33,12.51200059]
[1730987498184,0.1,186.4,186.34,12.51200059]
[1730987498185,12.61200059,186.4,186.34,12.51200059]
[1730987498388,3.94749555,186.39,186.34,12.51200059]
[1730987498586,0.1,186.42,186.37,12.51200059]
[1730987498801,0.1,186.46,186.4,12.51200059]
[1730987498996,5.3627,186.48,186.42,12.51200059]
[1730987498997,3.94790417,186.45,186.42,12.51200059]
[1730987499307,12.61200059,186.48,186.42,12.51200059]
[1730987499502,3.94842183,186.47,186.42,12.51200059]
[1730987499800,0.12549,186.47,186.42,12.51200059]
[1730987500006,12.51200059,186.48,186.42,12.51200059]
[1730987500597,23.776884,186.48,186.43,12.51200059]
[1730987500800,21.466112,186.51,186.45,12.51200059]
[1730987500801,33.97811259,186.51,186.45,12.51200059]
[1730987501004,3.94875913,186.5,186.45,12.51200059]
[1730987501200,12.51200059,186.49,186.43,12.51200059]
[1730987501384,12.51200059,186.51,186.45,12.51200059]
[1730987501582,19.97900944,186.53,186.47,12.51200059]
[1730987502290,12.51200059,186.53,186.47,12.51200059]
[1730987502495,0.12549,186.52,186.41,15.8351]
[1730987502695,23.776884,186.52,186.47,12.51200059]
[1730987502896,15.8351,186.55,186.5,12.51200059]
[1730987503092,12.51200059,186.56,186.5,28.60590059]
[1730987503295,12.51200059,186.57,186.51,12.51200059]
[1730987503501,29.00900432,186.58,186.53,12.51200059]
[1730987503678,0.1,186.62,186.57,12.51200059]
[1730987503881,0.1,186.62,186.5,16.0939]
[1730987503882,12.61200059,186.62,186.55,12.51200059]
[1730987504110,12.51200059,186.61,186.55,12.51200059]
[1730987504400,0.12549,186.6,186.55,12.51200059]
[1730987504604,12.51200059,186.66,186.59,12.51200059]
[1730987504793,12.51200059,186.66,186.5,28.60590059]
[1730987504794,12.51200059,186.66,186.6,12.51200059]
[1730987505390,12.61200059,186.67,186.61,12.51200059]
[1730987505592,0.1,186.67,186.61,12.51200059]
[1730987505788,0.1,186.67,186.62,12.51200059]
[1730987505985,23.776884,186.66,186.61,12.51200059]
[1730987506410,0.12549,186.65,186.61,12.51200059]
[1730987506703,12.51200059,186.65,186.59,28.57610059]
[1730987506905,23.902374,186.64,186.59,28.57610059]
[1730987507408,23.902374,186.65,186.6,20.0473794]
[1730987507596,23.902374,186.65,186.61,20.0473794]
[1730987507901,0.12549,186.65,186.61,20.0473794]
[1730987508114,0.12549,186.65,186.6,20.0473794]
[1730987509891,0.12549,186.65,186.61,20.0473794]
[1730987510791,0.12549,186.65,186.6,20.0473794]
[1730987511408,20.1728694,186.65,186.59,36.1114794]
[1730987511595,23.902374,186.63,186.59,16.0641]
[1730987512906,23.902374,186.63,186.59,36.1114794]
[1730987513128,0.12549,186.63,186.59,16.0641]
[1730987513792,20.0473794,186.61,186.55,20.0473794]
[1730987513993,0.12549,186.57,186.54,15.6234]
[1730987514193,0.12549,186.55,186.51,20.0473794]
[1730987514400,0.12549,186.55,186.5,20.0473794]
[1730987514721,0.12549,186.53,186.49,15.0572]
[1730987515407,23.902374,186.51,186.46,20.0473794]
[1730987515995,23.902374,186.52,186.47,20.0473794]
[1730987516201,0.12549,186.52,186.5,20.0473794]
[1730987519606,0.12549,186.52,186.47,20.0473794]
[1730987520516,0.12549,186.52,186.48,20.0473794]
[1730987521627,0.12549,186.52,186.47,20.0473794]
[1730987521916,43.9497534,186.5,186.45,15.3159]
[1730987522412,0.12549,186.47,186.42,20.0473794]
[1730987522613,23.902374,186.47,186.42,20.0473794]
[1730987522918,23.902374,186.47,186.43,20.0473794]
[1730987523096,0.1,186.53,186.44,20.0473794]
[1730987523097,23.902374,186.48,186.44,20.0473794]
[1730987523299,0.12549,186.48,186.44,20.0473794]
[1730987523700,0.12549,186.48,186.43,20.0473794]
[1730987523915,0.12549,186.48,186.42,20.0473794]
[1730987523916,20.1728694,186.48,186.42,20.0473794]
[1730987524124,0.12549,186.46,186.42,20.0473794]
[1730987524348,20.1728694,186.46,186.41,20.0473794]
[1730987524532,23.776884,186.43,186.4,16.5739]
[1730987524718,0.12549,186.42,186.4,16.5739]
[1730987525298,0.12549,186.42,186.38,20.0473794]
[1730987525504,0.12549,186.4,186.36,36.6775794]
[1730987525724,0.12549,186.4,186.36,16.6302]
[1730987526020,0.12549,186.38,186.36,16.6302]
[1730987526233,0.12549,186.38,186.33,20.0473794]
[1730987526601,0.12549,186.38,186.32,15.3338]
[1730987526602,20.1728694,186.38,186.32,35.3811794]
[1730987526837,43.9497534,186.36,186.32,15.3338]
[1730987527121,23.902374,186.36,186.32,15.3338]
[1730987527807,43.9497534,186.36,186.32,15.3338]
[1730987528117,43.9497534,186.36,186.2,20.1473794]
[1730987528118,43.9497534,186.34,186.28,20.0473794]
[1730987528927,23.902374,186.32,186.28,20.0473794]
[1730987529227,23.902374,186.32,186.29,20.0473794]
[1730987529409,23.902374,186.32,186.29,12.57155988]
[1730987530529,23.902374,186.33,186.28,12.57155988]
[1730987530716,23.902374,186.33,186.29,12.57155988]
[1730987532438,23.902374,186.33,186.28,12.57155988]
[1730987532725,0.12549,186.29,186.24,12.57155988]
[1730987533113,0.12549,186.29,186.25,12.57155988]
[1730987533911,0.12549,186.29,186.26,12.57155988]
[1730987534110,0.12549,186.29,186.27,12.57155988]
[1730987534425,0.12549,186.29,186.28,12.57155988]
[1730987534624,0.12549,186.29,186.27,12.57155988]
[1730987535233,0.12549,186.29,186.28,12.57155988]
[1730987536720,0.12549,186.29,186.27,12.57155988]
[1730987537406,0.12549,186.29,186.26,12.57155988]
[1730987537603,0.12549,186.29,186.25,12.57155988]
[1730987538612,0.12549,186.29,186.26,12.57155988]
[1730987538812,0.12549,186.29,186.25,12.57155988]
[1730987539121,0.12549,186.29,186.26,12.57155988]
[1730987539511,0.12549,186.29,186.24,12.57155988]
[1730987540320,0.12549,186.29,186.25,12.57155988]
[1730987543416,0.12549,186.29,186.26,12.57155988]
[1730987543620,0.1,186.36,186.28,12.57155988]
[1730987543823,12.57155988,186.35,186.29,12.57155988]
[1730987544030,0.12549,186.34,186.29,12.57155988]
[1730987544362,12.69704988,186.34,186.29,12.57155988]
[1730987545019,0.12549,186.32,186.29,12.57155988]
[1730987545420,0.12549,186.32,186.28,12.57155988]
[1730987545616,0.12549,186.32,186.27,12.57155988]
[1730987545823,0.12549,186.3,186.25,12.57155988]
[1730987546016,0.12549,186.28,186.25,12.57155988]
[1730987547223,0.12549,186.28,186.24,12.57155988]
[1730987548328,0.12549,186.28,186.25,12.57155988]
[1730987549018,0.12549,186.28,186.24,12.57155988]
[1730987549652,0.12549,186.26,186.22,29.00225988]
[1730987550140,0.12549,186.26,186.23,12.57155988]
[1730987551953,0.12549,186.26,186.22,12.57155988]
[1730987552257,0.12549,186.26,186.18,15.3471]
[1730987552258,0.12549,186.26,186.21,12.57155988]
[1730987552556,0.12549,186.26,186.22,12.57155988]
[1730987554557,0.12549,186.24,186.21,12.57155988]
[1730987557239,0.12549,186.24,186.22,12.57155988]
[1730987560958,0.12549,186.24,186.23,12.57155988]
[1730987563241,5.53038869,186.7,186.23,12.57155988]
[1730987563242,12.57155988,186.3,186.23,12.57155988]
[1730987563441,12.57155988,186.3,186.24,12.57155988]
[1730987563653,15.47259,186.29,186.24,12.57155988]
[1730987563856,12.57155988,186.3,186.24,12.57155988]
[1730987564040,27.91865988,186.3,186.24,12.57155988]
[1730987564382,0.12549,186.29,186.24,12.57155988]
[1730987564666,23.902374,186.29,186.24,12.57155988]
[1730987565848,15.3471,186.3,186.26,12.57155988]
[1730987566057,15.3471,186.3,186.2,12.57155988]
[1730987566058,12.57155988,186.33,186.27,12.57155988]
[1730987566562,0.12549,186.3,186.26,15.9893]
[1730987566865,12.69704988,186.3,186.26,15.9893]
[1730987567039,12.69704988,186.3,186.24,12.57155988]
[1730987567236,23.776884,186.29,186.25,12.57155988]
[1730987567437,23.776884,186.31,186.26,12.57155988]
[1730987568352,0.12549,186.3,186.26,12.57155988]
[1730987569673,0.12549,186.3,186.27,12.57155988]
[1730987570146,0.12549,186.3,186.26,12.57155988]
[1730987570353,0.12549,186.3,186.25,12.57155988]
[1730987570855,0.12549,186.3,186.22,16.335]
[1730987570856,0.12549,186.3,186.29,12.57155988]
[1730987571168,19.15746,186.34,186.29,12.57155988]
[1730987571465,0.12549,186.33,186.29,8.0449307]
[1730987571670,0.12549,186.33,186.28,8.0449307]
[1730987572344,23.902374,186.33,186.28,8.0449307]
[1730987573361,36.47520352,186.33,186.27,12.57282952]
[1730987574268,36.47520352,186.33,186.22,16.335]
[1730987574269,23.902374,186.33,186.28,12.57282952]
[1730987574764,36.47520352,186.33,186.27,12.57282952]
[1730987576150,23.902374,186.33,186.28,12.57282952]
[1730987576665,12.57282952,186.34,186.3,12.57282952]
[1730987576666,23.902374,186.34,186.3,12.57282952]
[1730987576904,12.57282952,186.39,186.33,12.57282952]
[1730987577167,12.57282952,186.39,186.28,15.8483]
[1730987577168,3.9481439,186.38,186.35,12.57282952]
[1730987577378,5.3639,186.43,186.34,12.57282952]
[1730987577379,3.94849178,186.37,186.34,12.57282952]
[1730987577669,12.57282952,186.4,186.34,12.57282952]
[1730987577866,0.12549,186.38,186.34,12.57282952]
[1730987578259,0.12549,186.38,186.35,12.57282952]
[1730987578557,0.12549,186.38,186.36,12.57282952]
[1730987578954,12.57282952,186.42,186.36,12.57282952]
[1730987579145,0.12549,186.41,186.37,12.57282952]
[1730987579353,15.8483,186.43,186.37,12.57282952]
[1730987579552,15.8483,186.43,186.4,12.57282952]
[1730987580052,12.57282952,186.46,186.4,12.57282952]
[1730987580253,12.57282952,186.46,186.39,12.57282952]
[1730987580667,36.34971352,186.44,186.38,12.57282952]
[1730987580871,0.12549,186.41,186.36,12.57282952]
[1730987581573,12.69831952,186.41,186.35,35.36552952]
[1730987581749,0.12549,186.39,186.35,35.36552952]
[1730987582356,12.69831952,186.39,186.35,16.4393]
[1730987582754,0.12549,186.37,186.35,16.4393]
[1730987583174,23.776884,186.36,186.31,12.57282952]
[1730987583356,0.12549,186.35,186.3,34.94442952]
[1730987584171,12.69831952,186.35,186.3,22.3716]
[1730987584402,0.12549,186.33,186.3,22.3716]
[1730987585081,0.12549,186.33,186.2,12.57282952]
[1730987585082,0.12549,186.31,186.27,12.57282952]
[1730987585374,0.12549,186.31,186.28,12.57282952]
[1730987585568,0.12549,186.31,186.29,12.57282952]
[1730987586153,0.12549,186.31,186.28,12.57282952]
[1730987587269,0.12549,186.31,186.26,15.1625]
[1730987587270,0.12549,186.31,186.27,12.57282952]
[1730987587652,0.12549,186.31,186.26,27.73532952]
[1730987588086,0.12549,186.31,186.26,15.1625]
[1730987588259,0.12549,186.29,186.26,15.1625]
[1730987589175,0.12549,186.27,186.2,15.3737]
[1730987589475,23.902374,186.26,186.2,27.94652952]
[1730987589671,23.902374,186.26,186.22,12.57282952]
[1730987590573,23.902374,186.26,186.21,12.57282952]
[1730987590875,36.47520352,186.26,186.2,27.94652952]
[1730987591177,23.902374,186.26,186.21,12.57282952]
[1730987591572,23.902374,186.26,186.2,15.3737]
[1730987591573,36.47520352,186.26,186.2,27.94652952]
[1730987593772,23.902374,186.26,186.21,12.57282952]
[1730987595279,0.12549,186.22,186.18,12.57282952]
[1730987596891,23.902374,186.2,186.17,12.57282952]
[1730987597177,23.902374,186.2,186.18,12.57282952]
[1730987597382,23.902374,186.2,186.19,8.05381241]
[1730987597589,23.902374,186.2,186.18,8.05381241]
[1730987598257,23.776884,186.26,186.19,8.05381241]
[1730987598459,23.776884,186.26,186.16,16.5498]
[1730987598460,0.12549,186.25,186.2,8.05381241]
[1730987598679,8.05381241,186.25,186.19,8.05381241]
[1730987598881,23.776884,186.24,186.19,8.05381241]
[1730987599189,0.12549,186.23,186.19,8.05381241]
[1730987599485,0.12549,186.23,186.19,12.58410244]
[1730987599865,0.12549,186.21,186.17,12.58410244]
[1730987600179,23.902374,186.21,186.16,16.5498]
[1730987600385,23.902374,186.21,186.17,12.58410244]
[1730987600694,12.58410244,186.23,186.17,12.58410244]
[1730987600985,12.58410244,186.24,186.18,12.58410244]
[1730987601184,12.58410244,186.25,186.2,12.58410244]
[1730987601361,12.58410244,186.26,186.2,12.58410244]
[1730987601561,0.12549,186.25,186.2,12.58410244]
[1730987601961,23.902374,186.25,186.2,12.58410244]
[1730987602575,36.48647644,186.25,186.19,12.58410244]
[1730987602883,23.902374,186.25,186.2,12.58410244]
[1730987603074,12.58410244,186.26,186.21,12.58410244]
[1730987603075,23.776884,186.26,186.21,12.58410244]
[1730987603276,12.58410244,186.3,186.24,12.58410244]
[1730987604388,0.12549,186.29,186.24,12.58410244]
[1730987604565,12.58410244,186.29,186.23,12.58410244]
[1730987604766,12.70959244,186.27,186.21,12.58410244]
[1730987604970,23.902374,186.25,186.21,12.58410244]
[1730987605171,23.902374,186.25,186.2,12.58410244]
[1730987605584,36.48647644,186.25,186.19,12.58410244]
[1730987605786,12.58410244,186.3,186.19,12.58410244]
[1730987605787,23.902374,186.23,186.19,12.58410244]
[1730987606891,23.902374,186.24,186.19,12.58410244]
[1730987609777,36.48647644,186.24,186.18,12.58410244]
[1730987611207,12.58410244,186.24,186.18,12.58410244]
[1730987611491,12.58410244,186.27,186.21,12.58410244]
[1730987611694,12.58410244,186.3,186.24,12.58410244]
[1730987611906,12.58410244,186.29,186.23,12.58410244]
[1730987612082,12.70959244,186.28,186.22,12.58410244]
[1730987612697,12.70959244,186.28,186.21,12.58410244]
[1730987613197,0.12549,186.26,186.21,12.58410244]
[1730987614198,0.12549,186.26,186.22,12.58410244]
[1730987614496,0.12549,186.26,186.21,12.58410244]
[1730987614685,0.12549,186.26,186.2,12.58410244]
[1730987614887,12.70959244,186.26,186.2,12.58410244]
[1730987615087,0.12549,186.24,186.19,12.58410244]
[1730987615476,0.12549,186.24,186.16,16.5498]
[1730987615477,0.12549,186.21,186.16,16.5498]
[1730987615678,23.902374,186.21,186.16,29.13390244]
[1730987616272,23.902374,186.22,186.16,29.13390244]
[1730987617101,36.48647644,186.22,186.16,29.13390244]
[1730987618974,23.902374,186.22,186.17,12.58410244]
[1730987619178,12.70959244,186.22,186.17,12.58410244]
[1730987619395,0.12549,186.2,186.16,29.13390244]
[1730987620198,1.3591425,186.26,186.19,12.58410244]
[1730987620199,12.58410244,186.25,186.19,12.58410244]
[1730987620391,12.58410244,186.26,186.2,12.58410244]
[1730987620597,0.12549,186.25,186.2,12.58410244]
[1730987620799,12.58410244,186.26,186.2,12.58410244]
[1730987621390,8.05255972,186.26,186.2,8.05255972]
[1730987621686,8.05255972,186.27,186.21,8.05255972]
[1730987622289,0.12549,186.26,186.21,8.05255972]
[1730987622878,0.12549,186.26,186.16,16.5498]
[1730987622879,8.05255972,186.26,186.22,5.3699]
[1730987623084,8.05255972,186.26,186.19,8.05255972]
[1730987623085,8.17804972,186.25,186.19,8.05255972]
[1730987623299,0.12549,186.23,186.19,8.05255972]
[1730987624886,8.17804972,186.23,186.17,5.3714]
[1730987625201,0.12549,186.21,186.17,13.42395972]
[1730987626813,0.12549,186.21,186.17,5.3714]
[1730987626992,0.12549,186.21,186.17,13.42395972]
[1730987627692,0.12549,186.21,186.15,0.5715274]
[1730987627693,0.12549,186.17,186.15,0.5715274]
[1730987627897,0.12549,186.17,186.15,8.62408712]
[1730987629428,0.12549,186.17,186.16,8.05255972]
[1730987630901,23.776884,186.24,186.16,8.05255972]
[1730987631093,0.12549,186.23,186.18,8.05255972]
[1730987636603,8.17804972,186.23,186.18,8.05255972]
[1730987636800,0.12549,186.21,186.18,8.05255972]
[1730987637015,0.12549,186.21,186.17,8.05255972]
[1730987637518,0.12549,186.21,186.16,8.05255972]
[1730987638515,0.12549,186.21,186.17,8.05255972]
[1730987639304,0.12549,186.21,186.16,8.05255972]
[1730987639910,8.17804972,186.21,186.15,0.5715274]
[1730987640120,0.12549,186.19,186.16,8.05255972]
[1730987640920,0.12549,186.19,186.17,8.05255972]
[1730987641131,0.12549,186.19,186.16,8.05255972]
[1730987641707,0.12549,186.19,186.15,8.62408712]
[1730987642927,0.12549,186.19,186.16,8.05255972]
[1730987643126,0.12549,186.19,186.18,8.05255972]
[1730987643728,0.12549,186.19,186.17,8.05255972]
[1730987644226,8.05255972,186.26,186.19,16.4124]
[1730987644446,8.05255972,186.27,186.21,8.05255972]
[1730987644928,8.05255972,186.29,186.23,8.05255972]
[1730987645308,6.25779218,186.31,186.25,8.05255972]
[1730987645510,6.5618,186.4,186.29,8.05255972]
[1730987645511,5.3656,186.37,186.29,8.05255972]
[1730987645711,8.05255972,186.35,186.29,8.05255972]
[1730987645921,8.05255972,186.34,186.28,8.05255972]
[1730987646130,8.05255972,186.33,186.27,23.89675972]
[1730987646316,11.62339218,186.37,186.27,23.89675972]
[1730987646317,8.05255972,186.32,186.27,15.8442]
[1730987646999,8.05255972,186.33,186.27,23.89675972]
[1730987647204,0.12549,186.32,186.27,23.89675972]
[1730987647622,31.95493372,186.32,186.27,15.8442]
[1730987648021,23.902374,186.32,186.27,23.89675972]
[1730987648211,11.62349218,186.37,186.28,8.05255972]
[1730987648406,11.62349218,186.37,186.29,8.05255972]
[1730987648621,8.05255972,186.36,186.3,8.05255972]
[1730987648824,8.17804972,186.34,186.28,8.05255972]
[1730987649030,0.12549,186.32,186.27,23.89675972]
[1730987649221,8.17804972,186.32,186.27,15.8442]
[1730987649729,0.12549,186.3,186.27,15.8442]
[1730987650314,0.12549,186.28,186.23,8.05255972]
[1730987650632,0.12549,186.28,186.24,8.05255972]
[1730987652928,8.05255972,186.34,186.27,8.05255972]
[1730987653103,8.05255972,186.34,186.22,21.8999]
[1730987653104,0.12549,186.33,186.28,8.05255972]
[1730987653307,8.05255972,186.34,186.28,8.05255972]
[1730987653507,40.11249117,186.4,186.29,8.05255972]
[1730987653508,8.05255972,186.35,186.29,8.05255972]
[1730987654007,8.05255972,186.34,186.28,8.05255972]
[1730987654210,0.12549,186.33,186.29,8.05255972]
[1730987654820,23.902374,186.33,186.28,8.05255972]
[1730987655138,0.12549,186.32,186.27,8.05255972]
[1730987655336,0.12549,186.32,186.27,12.57195923]
[1730987656021,0.12549,186.32,186.28,12.57195923]
[1730987658130,0.12549,186.3,186.26,12.57195923]
[1730987658316,0.12549,186.3,186.25,12.57195923]
[1730987659638,23.902374,186.28,186.24,12.57195923]
[1730987659840,23.902374,186.28,186.23,12.57195923]
[1730987662233,23.902374,186.28,186.24,12.57195923]
[1730987662617,23.902374,186.29,186.24,12.57195923]
[1730987662816,23.902374,186.29,186.25,12.57195923]
[1730987663334,23.902374,186.29,186.24,12.57195923]
[1730987663535,23.902374,186.29,186.22,21.8999]
[1730987663536,41.84223323,186.29,186.23,12.57195923]
[1730987663843,41.84223323,186.29,186.22,21.8999]
[1730987663844,23.902374,186.27,186.22,34.47185923]
[1730987664138,0.12549,186.27,186.24,12.57195923]
[1730987665247,0.12549,186.27,186.23,12.57195923]
[1730987666820,0.12549,186.27,186.24,12.57195923]
[1730987668631,12.57195923,186.33,186.26,12.57195923]
[1730987668835,5.3665,186.34,186.22,21.8999]
[1730987668836,12.57195923,186.34,186.28,12.57195923]
[1730987669226,12.57195923,186.34,186.22,21.9999]
[1730987669227,12.57195923,186.34,186.29,12.57195923]
[1730987669422,12.57195923,186.34,186.28,12.57195923]
[1730987669617,12.69744923,186.33,186.27,12.57195923]
[1730987670244,12.57195923,186.3,186.24,12.57195923]
[1730987670424,36.47433323,186.29,186.24,12.57195923]
[1730987671028,23.902374,186.29,186.24,12.57195923]
[1730987672250,23.902374,186.29,186.23,12.57195923]
[1730987672251,41.84233323,186.29,186.23,12.57195923]
[1730987672946,23.902374,186.27,186.23,12.57195923]
[1730987673247,23.902374,186.27,186.22,34.47185923]
[1730987673941,23.902374,186.27,186.23,12.57195923]
[1730987674249,23.776884,186.28,186.23,12.57195923]
[1730987674544,0.12549,186.27,186.23,12.57195923]
[1730987675232,0.12549,186.25,186.22,12.57195923]
[1730987675436,0.12549,186.25,186.22,8.05072873]
[1730987677844,0.12549,186.25,186.17,16.2499]
[1730987677845,0.12549,186.25,186.23,8.05072873]
[1730987678034,7.45856829,186.32,186.23,8.05072873]
[1730987678035,1.32856829,186.32,186.23,8.05072873]
[1730987678239,5.3665,186.34,186.26,8.05072873]
[1730987678547,8.05072873,186.3,186.24,16.1499]
[1730987678845,0.12549,186.28,186.24,24.20062873]
[1730987679050,0.12549,186.28,186.25,8.05072873]
[1730987679245,12.96447235,186.35,186.27,8.05072873]
[1730987679453,0.12549,186.32,186.24,16.1499]
[1730987679630,8.05072873,186.32,186.26,8.05072873]
[1730987679826,8.05072873,186.32,186.24,16.1499]
[1730987680041,0.12549,186.3,186.25,8.05072873]
[1730987680345,8.05072873,186.31,186.25,8.05072873]
[1730987680727,0.12549,186.3,186.26,8.05072873]
[1730987682649,0.12549,186.3,186.26,8.05072873]
[1730987682943,0.12549,186.3,186.24,16.1499]
[1730987682944,0.12549,186.3,186.27,8.05072873]
[1730987683139,23.776884,186.35,186.29,8.05072873]
[1730987683448,23.776884,186.33,186.29,8.05072873]
[1730987683853,0.12549,186.32,186.29,8.05072873]
[1730987684354,7.49417445,186.4,186.3,8.05072873]
[1730987684533,8.05072873,186.36,186.3,8.05072873]
[1730987684855,23.902374,186.35,186.3,8.05072873]
[1730987685028,0.12549,186.35,186.3,8.05072873]
[1730987686251,23.776884,186.36,186.31,24.32582873]
[1730987686426,23.776884,186.36,186.33,8.05072873]
[1730987686632,6.13,186.44,186.33,8.05072873]
[1730987686633,5.3639,186.43,186.33,8.05072873]
[1730987686842,8.05072873,186.39,186.33,8.05072873]
[1730987687034,0.12549,186.38,186.33,8.05072873]
[1730987687445,0.12549,186.38,186.34,8.05072873]
[1730987687947,31.95310273,186.39,186.34,8.05072873]
[1730987689155,23.902374,186.37,186.33,8.05072873]
[1730987689354,23.902374,186.37,186.32,8.05072873]
[1730987690739,31.95310273,186.37,186.31,24.32582873]
[1730987691658,8.05072873,186.35,186.31,16.2751]
[1730987691849,8.05072873,186.36,186.31,16.2751]
[1730987692026,0.12549,186.35,186.31,16.2751]
[1730987692232,23.902374,186.35,186.31,16.2751]
[1730987693656,23.902374,186.35,186.31,24.32582873]
[1730987693951,0.12549,186.35,186.31,24.32582873]
[1730987694337,0.12549,186.35,186.31,16.2751]
[1730987694537,8.17621873,186.35,186.31,16.2751]
[1730987694735,0.12549,186.33,186.31,16.2751]
[1730987695133,0.12549,186.33,186.25,6.3673]
[1730987695438,32.20291492,186.4,186.25,6.3673]
[1730987695439,0.12549,186.31,186.27,8.05072873]
[1730987695638,0.12549,186.31,186.26,23.28522873]
[1730987697559,0.12549,186.31,186.27,8.05072873]
[1730987698166,0.12549,186.31,186.29,8.05072873]
[1730987698337,8.05072873,186.38,186.3,8.05072873]
[1730987698536,8.05072873,186.39,186.33,8.05072873]
[1730987699636,8.05072873,186.38,186.33,8.05072873]
[1730987700038,0.12549,186.36,186.33,8.05072873]
[1730987700677,5.3639,186.43,186.33,8.05072873]
[1730987700865,8.05072873,186.39,186.33,8.05072873]
[1730987701050,8.05072873,186.38,186.32,8.05072873]
[1730987701251,0.12549,186.34,186.26,15.3345]
[1730987701463,0.12549,186.34,186.3,8.05072873]
[1730987702051,0.12549,186.35,186.3,8.05072873]